{"text_format":"2","workbook":"xlsx","n_sheets":4,"sheets":["Planilha I - Eletrico","Planilha II - Hidráulico","Planilha III - Macenaria-Ferram","Planilha IV - Novos Materiais"],"not_rendered":{"charts":0,"images":1,"macros":0,"external_links":0,"defined_names":8,"comments":0,"pivot_tables":0},"unopened":[],"bounds":{"document_bytes":16777216,"sheet_cells":100000,"run_cost":"one","rows_first":2000,"rows_last":500,"rows_between":2000,"halvings":0,"cell_chars":16384,"cell_head_chars":4096},"cells_cut":0,"cells_raw":0,"read":"whole","date_system":"1900"}

{"sheet":"Planilha I - Eletrico","index":0,"n_rows":62,"n_cols":12,"rows_kept":62,"cut":false,"hidden":false,"merged":[[61,1,61,9],[8,1,8,11],[9,1,9,11],[3,3,3,11],[4,3,4,11],[5,3,5,11],[6,3,6,11],[10,1,10,11]]}
[]
[]
[]
[null,null,null,"MINISTÉRIO DA INTEGRAÇÃO NACIONAL - MI"]
[null,null,null,"COMPANIHA DE DESENVOLVIMENTO DOS VALES DO SÃO FRANCISCO E DO PARNAÍBA - CODEVASF"]
[null,null,null,"ÁREA DE GESTÃO ADMINISTRATIVA E DE SUPORTE LOGÍSTICO"]
[null,null,null,"Gerência de Patrimônio, Materiais e Serviços Auxiliares"]
[]
[null,"Planilha I"]
[null,"Material de Manutenção Elétrica"]
[]
[null,"Unidade: ",null,null,"Codevasf"]
[null,"Item","Código CATMAT","Natureza Despesa","Descrição Sucinta","Unid.","Adquirente","Consumo  Anual \nGeral","Preço unitário máximo","Preço unitário máximo\n2015","Preço\nUnitário REGISTRADO 2016","Valor Global"]
[null,1,"BR0376467","30.90.30-26","Adaptador, tensão nominal 127/220, de um lado tomada 2P+T E universal, do outro plugue, padrão brasileiro, branca, NBR 14136/2002, 690660. (Do padrão  novo para o  antigo)\nMarca: equivalente ou superior à PIAL.","Unid.",null,365]
[null,{"$f":"B14+1","v":2}," BR0395739","30.90.30-26","Adaptador, tensão nominal 127/220, tipo tomada 2P+T, corrente nominal 20, do padrão antigo para o novo, material termoplástico, normas técnicas NBR 14136, referência cód 64119, potência nominal 1905/3300\nMarca: equivalente ou superior à PIAL.","Unid.",null,380]
[null,3,"BR0390141","30.90.30-26","Cabo elétrico flexível, 2 x 4mm,  750V, PP, isolação interna PVC, anti-chama.\nCom certificação INMETRO / NBR 13249\nBobina com 500 metros\nMarca:  equivalente ou superior à Pirelli.","Metro",null,2611]
[null,4,"BR0394031","30.90.30-26","Cabo elétrico flexível, PP 2 X 1.50 mm, 750V, material do condutor cobre, anti-chama, com isolamento em pvc - CLORETO DE POLIVINILA\nCom certificação INMETRO / NBR 13249\nMarca: equivalente ou superior à Megatron.                                                                                               ","Rolo 100 metros",null,33]
[null,5,"BR0342939","30.90.30-26","Cabo elétrico flexível, PP 2 X 2.50 mm, 750V, material do condutor cobre, com isolamento em pvc\nCom certificação INMETRO / NBR 13249\nMarca: equivalente ou superior à Megatron.                                                                                                                                                                                                                          ","Rolo 100 metros",null,32]
[null,6,"BR0409524","30.90.30-26","Cabo elétrico flexível, PP 3 X 1.50 mm, 750V, material do condutor cobre,anti-chama, com isolamento em pvc -\nCom certificação INMETRO / NBR 13249\nMarca: equivalente ou superior à Megatron.                                                                                               ","Rolo 100 metros",null,32]
[null,7,"BR0332928","30.90.30-26","Cabo elétrico flexível, PP 3 X 2.50 mm, 750V, material do condutor cobre, anti-chama, com isolamento em pvc\nCom certificação INMETRO / NBR 13249\nMarca: equivalente ou superior à Pirelli.","Rolo 100 metros",null,35]
[null,8,"BR0129763","30.90.30-17","Caixa de cabos par trançados categoria 6\nComposto por condutores de cobre nu recozido de 0,52mm (24AWG) de diâmetro nominal, isolados com polietileno sólido. Condutores torcidos em pares e reunidos formando o núcleo de 4 pares. Núcleo revestido por uma capa de PVC retardante à chama. Na cor azul. Comprimento de 305 metros por caixa.","Caixa com 305 metros",null,27]
[null,9,"BR0243116","30.90.30-26","Caixa passagem, material PVC rígido, tipo embutir, comprimento  4 polegadas, largura 4 polegada, cor amarela. \nMarca:  equivalente ou superior à Tigre..","Unid.",null,264]
[null,10,"BR0041629","30.90.30-26","Estabilizador de voltagem de 1000VA\nCapacidade de potencia nominal 1 KVA, tensão alimentação entrada 110/220 volts, tensão de alimentação de saída 115 v, com no mínimo 4 tomadas.\nGarantia de 1 ano.","UN",null,268]
[null,11,"BR0231995","30.90.30-26","Estabilizador de voltagem de 2000VA\nCapacidade de potencia nominal 2 KVA, tensão alimentação entrada 110/220 volts, tensão de alimentação de saída 115 v, com no mínimo 4 tomadas.\nGarantia de 1 ano.","UN",null,99]
[null,12,"BR0291227","30.90.30-26","Filtro linha, tensão alimentação 110/220 V, potência máxima 1.000 W, quantidade saída 5 tomadas para computador, características adicionais cabo de força de aproximadamente 1,30 M","Unid.",null,272]
[null,13,"BR0239472","30.90.30-26","Fio elétrico flexível, paralelo, bitola 2 x 1,5 mm, material condutor cobre, material isolamento PVC\nMarca:  equivalente ou superior à Pirelli.","Rolo 100 metros",null,48]
[null,14,"BR0238853","30.90.30-26","Fio elétrico flexível, paralelo, bitola 2 x 2,5 mm, material condutor cobre, material isolamento PVC\nMarca:  equivalente ou superior à Pirelli.","Rolo 100 metros",null,48]
[null,15,"BR0224596","30.90.30-26","Fio flexível, 2,5mm,  para tensões de até 450/750 V., conforme NBR NM 247-3\n(cores: Vermelho, preto, branco, azul, amarelo e verde)\nMarca:  equivalente ou superior à Pirelli.","Rolo 100 metros",null,220]
[null,16,"BR224597","30.90.30-26","Fio flexível, 4,0 mm, para tensões de até 450/750 V.\nCom certificação INMETRO / NBR 13249\n(cores: Vermelho, preto, branco, azul  e verde)\nMarca:  equivalente ou superior à Pirelli.","Rolo 100 metros",null,62]
[null,17,"BR0313047","30.90.30-26","Fita isolante elétrica, material básico PVC anti-chama, cor preta, comprimento 20 m, largura 19 mm","UN",null,321]
[null,18,"BR0013773","33.90.30-26","Interruptor de embutir, duas sessões, conjugado com tomada","unid.",null,140]
[null,19,"BR0013773","33.90.30-26","Interruptor de embutir, três sessões","unid.",null,110]
[null,20,"BR0013773","33.90.30-26","Interruptor de embutir, uma sessão","unid.",null,140]
[null,21,"BR0013773","33.90.30-26","Interruptor de embutir, uma sessão, conjugado com tomada","unid.",null,110]
[null,22,"BR0212380","30.90.30-26","Interruptor de sobrepor 01 seções completo, corrente nominal 10 A, composto de tampa, miolo, caixa padrão de sobrepor com 4 saidas de 20mm + 2 saidas de 40mm, parafuso, linha classe A - TIPO SISTEMA X.\nMarca:  equivalente ou superior à Pial Legrand.","Unid.",null,276]
[null,23,"BR0212385","30.90.30-26","Interruptor de sobrepor 02 seções completo, corrente nominal 10 A, composto de tampa, miolo, caixa padrao de sobrepor com 4 saidas de 20mm + 2 saidas de 40mm, parafuso, linha classe A - TIPO SISTEMA X.\nMarca:  equivalente ou superior à Pial Legrand.","Unid.",null,276]
[null,24,"BR0212390","30.90.30-26","Interruptor de sobrepor 03 seções completo, corrente nominal 10 A, composto de tampa, miolo, caixa padrão de sobrepor com 4 saidas de 20mm + 2 saidas de 40mm, parafuso, linha classe A - TIPO SISTEMA X.\nMarca:  equivalente ou superior à Pial Legrand.","Unid.",null,209]
[null,25,"BR0261260","30.90.30-26","Lâmpada fluorescente compacta, potência 15 W, comprimento 140 mm, diâmetro  aproximadamente de 52 cm, tensão 220/240 V, características adicionais                                                                                                                    ","Unid.",null,210]
[null,26,"BR0245112","30.90.30-26","Lâmpada fluorescente compacta, tipo base Edson-27, potência 30, tensão 220","Unid.",null,100]
[null,27,"BR0349219","30.90.30-26","Lâmpada fluorescente compacta, tipo base eletrônica, potência 45 W, tensão 220V","UN",null,360]
[null,28,"BR0234117","30.90.30-26","Lâmpada Fluorescente HO 110, tubular, base bipino, potência 110 W, comprimento 2.400 mm, tensão alimentação 220V                    ","Unid.",null,870]
[null,29,"BR0256287","30.90.30-26","Lâmpada fluorescente tubular, base bipino, potência 20 W, tensão alimentação 220 V","Unid.",null,1025]
[null,30,"BR0232988","30.90.30-26","Lâmpada fluorescente, tubular, base bipino, potência 40 W, tensão alimentação 220 V","Unid.",null,1620]
[null,31,"BR0424263","33.90.30-16","Lâmpada LED bulbo 10 W, 220 V","unid.",null,220]
[null,32,"BR0437541","33.90.30-16","Lâmpada tubular LED 18W - 1200mm, 220 V","unid.",null,690]
[null,33,"BR0424263","33.90.30-16","Lâmpada tubular LED 38 W - 1200mm, 220 V","unid.",null,250]
[null,34,"BR0437543","33.90.30-16","Lâmpada tubular LED 9W - 600 m, 220 V","unid.",null,140]
[null,35,"BR0311346","30.90.30-26","Lâmpada vapor mercúrio alta pressão 250W","Unid.",null,80]
[null,36,"BR042323","30.90.30-26","Lâmpada vapor metalica tubular de 440W","Unid.",null,74]
[null,37,"BR041629","30.90.30-26","NOBREAK\nPotência nominal 1400VA / 980 Watts (Fator de potência = 0,7).\nTensão de entrada: 115V / 220V – Bivolt.\nTensão de saída: 115V.\nPossui 2 baterias internas de 12V x 7Ah.\nPossui mínimo 5 tomadas de saída.\nInterativo com regulação ON LINE.\nEstabilizador com 4 estágios de regulação.\nMicro processado com tecnologia RISC de alta velocidade com memória Flash.\nFunção TRUE RMS.\nAuto teste: ao ser ligado, o equipamento autoexecuta uma rotina de testes em seus circuitos internos.\nGerenciador de Baterias para informar quando a bateria precisa ser substituída.\nRecarregador Strong Charger para permite a recarga das baterias mesmo com níveis muito baixos de carga. E conector do tipo engate rápido para expansão de autonomia.\nInversor sincronizado com a rede (PLL).\nForma de onda senoidal por aproximação: retangular PWM controle de largura e amplitude.\nPossui DC Start para permitir ser ligado na ausência de rede elétrica.\nLeds no painel frontal indicam as condições (status) do nobreak, como: modo rede, modo inversor/bateria, final de autonomia, subtensão, sobretensão, baterias em carga.\nPossui Alarme audiovisual intermitente para queda de rede e fim do tempo de autonomia.\nPossui Porta fusível externo com unidade reserva.","unid.",null,100]
[null,38,"BR041629","30.90.30-26","[ Cotação Exclusiva para ME e EPP ]\nNOBREAK\nPotência nominal 1400VA / 980 Watts (Fator de potência = 0,7).\nTensão de entrada: 115V / 220V – Bivolt.\nTensão de saída: 115V.\nPossui 2 baterias internas de 12V x 7Ah.\nPossui mínimo 5 tomadas de saída.\nInterativo com regulação ON LINE.\nEstabilizador com 4 estágios de regulação.\nMicro processado com tecnologia RISC de alta velocidade com memória Flash.\nFunção TRUE RMS.\nAuto teste: ao ser ligado, o equipamento autoexecuta uma rotina de testes em seus circuitos internos.\nGerenciador de Baterias para informar quando a bateria precisa ser substituída.\nRecarregador Strong Charger para permite a recarga das baterias mesmo com níveis muito baixos de carga. E conector do tipo engate rápido para expansão de autonomia.\nInversor sincronizado com a rede (PLL).\nForma de onda senoidal por aproximação: retangular PWM controle de largura e amplitude.\nPossui DC Start para permitir ser ligado na ausência de rede elétrica.\nLeds no painel frontal indicam as condições (status) do nobreak, como: modo rede, modo inversor/bateria, final de autonomia, subtensão, sobretensão, baterias em carga.\nPossui Alarme audiovisual intermitente para queda de rede e fim do tempo de autonomia.\nPossui Porta fusível externo com unidade reserva.","unid.",null,34]
[null,39,"BR0399230","30.90.30-26","Tomada, modelo universal 2P+T, formato corpo redondo, corrente nominal 15 A, tensão nominal 250, características adicionais caixa sobrepor 70mm X 70mm X 27mm, para  instalação elétric, com parafusos.\nLinha classe A - TIPO SISTEMA X. \nConforme norma ABNT NBR 14136","UN",null,460]
[null,40,"BR0240105","30.90.30-26","Reator eletrônico, para lâmpada fluorescente HO (HIGH OUTPUT), 2  X 110 W,  110/220 V","Unid.",null,270]
[null,41,"BR0416227","30.90.30-26","Reator externo, HQI de 400w.","Unid.",null,56]
[null,42,"BR0418057","30.90.30-26","Reator lâmpada fluorescente, instantânea, eletrônico, potência nominal 20 W, tensão nominal 127/220 V, ALTO, quantidade 1 lâmpada, selo INMETRO garantia 2 anos, T10                                                                  ","Unid.",null,220]
[null,43,"BR0405815","30.90.30-26","Reator lâmpada fluorescente, instantânea, eletrônico, potência nominal 20 W, tensão nominal 127/220 V, ALTO, quantidade 2 lâmpadas, selo INMETRO garantia 2 anos, T10                                                                  ","Unid.",null,430]
[null,44,"BR0405814","30.90.30-26","Reator lâmpada fluorescente, instantânea, eletrônico, potência nominal 40 W, tensão nominal 127/220 V, ALTO, quantidade 2 lâmpadas, selo INMETRO garantia 2 anos, T10       ","Unid.",null,580]
[null,45,"BR0207740","30.90.30-26","Reator lâmpada vapor mercúrio, tipo uso interno, potência nominal lâmpada 250 watt, tensão nominal 220 V, frequência nominal 60 hz, fator potência baixo, NBR 5.125/80","Unid.",null,64]
[null,46,"BR0234935","30.90.30-26","Receptáculo de rabicho para lâmpada fluorescente","Unid.",null,570]
[null,47,"BR0364621","30.90.30-26","Soquete anti-vibratório para lâmpada fluorescente em geral EXCETO T5, braquilite, com Dimensões: altura: 6 cm, largura: 2,5 cm, profundidade: 2 cm","Unid.",null,610]
[]
[null,"Total Geral",{"$nulls":9},{"$f":"SUM(L14:L61)","v":0}]

{"sheet":"Planilha II - Hidráulico","index":1,"n_rows":52,"n_cols":12,"rows_kept":52,"cut":false,"hidden":false,"merged":[[3,3,3,11],[4,3,4,11],[5,3,5,11],[6,3,6,11],[51,1,51,9],[9,1,9,11],[8,1,8,11],[10,1,10,11]]}
[]
[]
[]
[null,null,null,"MINISTÉRIO DA INTEGRAÇÃO NACIONAL - MI"]
[null,null,null,"COMPANIHA DE DESENVOLVIMENTO DOS VALES DO SÃO FRANCISCO E DO PARNAÍBA - CODEVASF"]
[null,null,null,"ÁREA DE GESTÃO ADMINISTRATIVA E DE SUPORTE LOGÍSTICO"]
[null,null,null,"Gerência de Patrimônio, Materiais e Serviços Auxiliares"]
[]
[null,"Planilha II"]
[null,"Material de Manutenção Hidráulica"]
[]
[null,"Unidade: CODEVASF"]
[null,"Item","Código CATMAT","Natureza Despesa","Descrição Sucinta","Unid.","Adquirente","Consumo  Anual \nGeral","Preço unitário máximo","Preço unitário máximo\n2015","Preço unitário REGISTRADO 2016","Valor Global"]
[null,{"$f":"'Planilha I - Eletrico'!$B$60+1","v":48},"BR0235936","30.90.30-26","Anticorrosivo, lubrificante/desengrax \nAnte/antioxidante/penetrante, spray \nMarca:  equivalente ou superior à WD.","UN",null,82]
[null,{"$f":"B14+1","v":49},"BR0258317","33.90.30-24","Assento sanitário padrão, oval, almofadado, cor branco, tampo em prolipropileno","unid.",null,138]
[null,{"$f":"B15+1","v":50},"BR0288460","30.90.30-26","Cascola (cola branca) galão","LT",null,46]
[null,51,"BR0038342","30.90.30-24","Chuveiro elétrico, ducha eletrônica 220V 7500W, mangueira e ducha manual e suporte para fixação.\nMarca: equivalente ou superior à Lorenzetti.","UN",null,12]
[null,52,"BR0232601","30.90.30-26","Cola adesiva para conexão hidráulica, acetona/metiletilcetona / tolual e resina pvc, prazo de validade de 1 ano após fabricação, tubos e conexões de pvc\nMarca:  equivalente ou superior à Tigre.","Frasco 175g",null,67]
[null,53,"BR0243136","30.90.30-24","Conexão em PVC , tipo joelho, de 20mm (1/2\")\nClasse \" A \"\nMarca: equivalente ou superior à Tigre.","UN",null,230]
[null,54,"BR0243137","30.90.30-24","Conexão em PVC , tipo joelho, de 25mm (3/4\")\nClasse \" A \"\nMarca: equivalente ou superior à Tigre.","UN",null,230]
[null,55,"BR0346838","30.90.30-24","Conexão em PVC , tipo T, de 20mm (1/2\")\nClasse \" A \"\nMarca: equivalente ou superior à Tigre.","UN",null,230]
[null,56,"BR0346837","30.90.30-24","Conexão em PVC , tipo T, de 25mm (3/4\")\nClasse \" A \"\nMarca: equivalente ou superior à Tigre.","UN",null,230]
[null,57,"BR0295430","30.90.30-24","Conexão em PVC, tipo curva raio longo, de 20mm (1/2\")\nClasse \" A \"\nMarca: equivalente ou superior à Tigre.","UN",null,215]
[null,58,"BR0290182","30.90.30-24","Conexão em PVC, tipo curva raio longo, de 25mm (3/4\")\nClasse \" A \"\nMarca: equivalente ou superior à Tigre.","UN",null,215]
[null,59,"BR0039144","30.90.30-24","Conexão em PVC, tipo luva de correr, de 20mm (1/2\")\nClasse \" A \"\nMarca: equivalente ou superior à Tigre.","UN",null,230]
[null,60,"BR0227725","30.90.30-24","Conexão em PVC, tipo luva de correr, de 25mm (3/4\")\nClasse \" A \"\nMarca: equivalente ou superior à Tigre.","UN",null,230]
[null,61,"BR0034525 ","30.90.30-24","disco diamantado, diamante, 105 mm,  0 mm, segmentado, mármore   ","UN",null,28]
[null,62,"BR0301441","30.90.30-24","Engate hidráulico, aço inoxidável, 1/ 2 pol, 40 cm, instalações prediais água fria, com anel de vedação nas e xtremidades, rosca bsp ma","UN",null,55]
[null,63,"BR00331527","30.90.30-24","Fita antiderrapante, filme de poliéster com mineral abrasivo, largura 50mm, cor da fita preta, par utilização em escada, rampa, corredor, 20 m, adesivo de borracha e linear, à prova d'água/resina adesiva\nCaixa com um rolo de 5 metros\nMarca: equivalente ou superior à Safety-Walk 3M.   ","Caixa com um rolo de 5 metros",null,121]
[null,64,"BR0319589","30.90.30-24","Fita veda rosca 18mm X 50 M\nEmbalagem Caixa de papelão\nMarca: equivalente ou superior à Tigre.","UN",null,180]
[null,65,"BR0214147","30.90.30-24","Mangueira jardim, material PVC-traçado em náilon, diâmetro 1/2, espessura 2, pressão máxima 6 BAR., comprimento 100, cor azul / laranja / transparente","Unidade\ncom 100 Metros",null,120]
[null,66,"BR0325013","30.90.30-24","Massa calafetar, resina sintética, 1, 70 g/cm3, água, vedação - EMBALAGEM 350,00 G                          ","Embalagem 350,00 G",null,53]
[null,67,"BR0287999","30.90.30-24","Porta-papel higiênico, plástico abs,   20 cm, 27 cm, para rolo de 300 a 400 m  ","UN",null,196]
[null,68,"BR0330354","30.90.30-24","Porta-toalha, plástico, cinza/branco, em parede com buchas expansíveis, banheiro, para papel com 2 ou 3 dobras, 27,5 cm, 36,5 cm, 12 cm ","UN",null,181]
[null,69,"BR0350799","33.90.30-21","Refil para filtro em carvão, para purificador de água marca/modelo IBBL FR 600","unid.",null,31]
[null,70,"BR0340311","30.90.30-24","Refil, material carvão ativado, aplicação filtro SOFT BY EVEREST","UN",null,32]
[null,71,"BR0053481","30.90.30-24","Régua de alumino com 2 metors, para pedreiro","UN",null,13]
[null,72,"BR0030651","30.90.30-24","Removedor de tinta, galão de 5 (cinco) litros","GL",null,24]
[null,73,"BR0301252","30.90.30-24","Reparo válvula hidráulica, metal cromado, encaixe, 1 1/4 pol, válvula descarga docol ri 484 ap, kit composto   anel roscável e vedação/trava metal, descarga, 00022800","UN",null,21]
[null,74,"BR0283959 ","30.90.30-24","Reparo válvula hidráulica, plástico, válvula descarga hydra-deca, acionador, 2520  ","UN",null,41]
[null,75,"BR0330355","30.90.30-24","Saboneteira, plástico abs, policarbonato transparente alta resistência, 22 cm, 13 cm, 900 ml, antifurto atra vés buchas expansivas, banheiro, sabonete líquido/válvula dosadora 0,75  ml por acio, branca, 9,50 cm  ","UN",null,116]
[null,76,"BR0367204","33.90.30-17","Spray para limpeza de contatos elétricos e eletrônicos (dielétrico) de secagem imediata; densidade: 0,660 – 0,670 com a função de remover os resíduos que prejudicam a condutividade nos contatos elétricos e eletrônicos, poeira e umidade e recuperar a condutividade nos contatos instantaneamente.","unid.",null,27]
[null,77,"BR0253944 ","30.90.30-24","Torneira, aço inoxidável cromado, pi , 1/2 pol, bica móvel para bancada giratória,tipo pescoço de, bancada","UN",null,46]
[null,78,"BR0303691","30.90.30-24","torneira, aço inoxidável, alavanca, 1/2 pol, cafeteira elétrica universal  ","UN",null,23]
[null,79,"BR0239640 ","30.90.30-24","Torneira, material corpo metal, tipo lavatório, diâmetro 1/2 polegada, acabamento superficial cromado, características adicionais com temporizador                ","UN",null,102]
[null,80,"BR0075469","30.90.30-24","Tubo PVC soldável, aplicação rede hidráulica e esgoto, cor branca, diâmetro nominal 100 mm, comprimento 6 mt, tipo leve, material pvc rígido \nClasse \" A \"\nMarca:  equivalente ou superior à Tigre.","UN",null,38]
[null,81,"BR0075469","30.90.30-24","Tubo PVC soldável, hidráulica, marrom, 20 mm (1/2\"), 6 m, 32 mm, 1,50 mm, 7,50 kgf/cm2 a 20°c\nClasse \" A \"\nMarca:  equivalente ou superior à Tigre.","UN",null,52]
[null,82,"BR0075469","30.90.30-24","Tubo PVC soldável, hidráulica, marrom, 25 mm (3/4\"), 6 m, 32 mm, 1,70 mm, 7,50 kgf/cm2 a 20°c\nClasse \" A \"\nMarca: equivalente ou superior à Tigre.","UN",null,52]
[null,83,"BR0075469","30.90.30-24","Tubo PVC soldável, hidráulica, marrom, 40 mm, 6 m, 40 mm, 2,40 mm, 7,50 kgf/cm2 a 20°c\nClasse \" A \"\nMarca: equivalente ou superior à Tigre.","UN",null,42]
[null,84,"BR0075469","30.90.30-24","Tubo PVC soldável, hidráulica, marrom, 50 mm, 6 m, 50 mm, 3 mm, 7,50 kgf/cm2 a 20°c\nClasse \" A \"\nMarca: equivalente ou superior à Tigre.","UN",null,42]
[]
[null,"Total Geral",{"$nulls":9},{"$f":"SUM(L14:L51)","v":0}]

{"sheet":"Planilha III - Macenaria-Ferram","index":2,"n_rows":51,"n_cols":12,"rows_kept":51,"cut":false,"hidden":false,"merged":[[50,1,50,10],[8,1,8,11],[9,1,9,11],[3,3,3,11],[4,3,4,11],[5,3,5,11],[6,3,6,11],[10,1,10,11]]}
[]
[]
[]
[null,null,null,"MINISTÉRIO DA INTEGRAÇÃO NACIONAL - MI"]
[null,null,null,"COMPANIHA DE DESENVOLVIMENTO DOS VALES DO SÃO FRANCISCO E DO PARNAÍBA - CODEVASF"]
[null,null,null,"ÁREA DE GESTÃO ADMINISTRATIVA E DE SUPORTE LOGÍSTICO"]
[null,null,null,"Gerência de Patrimônio, Materiais e Serviços Auxiliares"]
[]
[null,"Planilha III"]
[null,"Material de Manutenção de Marcenaria / Ferramentas"]
[]
[null,"Unidade: CODEVASF"]
[null,"Item","Código CATMAT","Natureza Despesa","Descrição Sucinta","Unid.","Adquirente","Consumo  Anual \nGeral","Preço unitário máximo\n2017","Preço unitário máximo\n2015","Preço unitário REGISTRADO 2016","Valor Global"]
[null,{"$f":"'Planilha II - Hidráulico'!$B$50+1","v":85},"BR0251453 ","30.90.30-26","Alicate universal, forjado em aço cromo vanádio, profissional, cabo isolado, corte temperado por indução, 200 mm,  corte arames duros e corda de piano\nMarca: equivalente ou superior à Gedore.                                ","UN",null,29]
[null,{"$f":"B14+1","v":86},"BR0311040","30.90.30-26","Arco serra, lâmina serra standard 12 polegadas, material cabo polipropileno, tratamento superficial niquelado, tamanho 12 polegadas, tipo regulável, características adicionais com cabo fechado e profundidade de corte de 90 mm.\nMarca:  equivalente ou superior à Starrett.","UN",null,28]
[null,{"$f":"B15+1","v":87},"BR0277412","30.90.30-26","Broca wídia, material corpo aço, material ponta wídia, tamanho longa, diâmetro 10 mm","UN",null,39]
[null,88,"BR0266375","30.90.30-26","Broca wídia, material corpo aço, material ponta wídia, tamanho média, diâmetro 6 mm","UN",null,39]
[null,89,"BR0266376","30.90.30-26","Broca wídia, material corpo aço, material ponta wídia, tamanho média, diâmetro 8 mm ","UN",null,39]
[null,90,"BR0277410","30.90.30-26","Broca wídia, para concreto, material corpo aço, material ponta wídia, tamanho curta, diâmetro 4 mm                                         ","UN",null,39]
[null,91,"BR0227316",null,"Broca, aço rápido, 9/64 pol, médio, cilíndrica","UN",null,63]
[null,92,"BR0284259","30.90.30-26","Broca, material aço rápido, Comprimento total: 160mm, Comprimento útil: 100mm, aplicação martelete/concreto, componentes 7 brocas com diâmetro de 0,6mm; 0,8mm; 10mm; 12mm;, características adicionais tipo encaixe SDS\nUtilização em martelete Bosch GBH 2-24D","Jogo com 7 unid.",null,13]
[null,93,"BR0243298","30.90.30-26","Broca, material aço rápido, diâmetro S/4 mm, tamanho médio, tipo haste cilíndrica ","UN",null,50]
[null,94,"BR0242968","30.90.30-26","Broca, material aço rápido, diâmetro S/6 mm, tamanho médio, tipo haste cilíndrica","UN",null,50]
[null,95,"BR0359439","30.90.30-26","Bucha de nylon tamanho S/10","UN",null,4500]
[null,96,"BR0318019","30.90.30-26","Bucha de nylon tamanho S/4","UN",null,4400]
[null,97,"BR0249217","30.90.30-26","Bucha de nylon tamanho S/6","UN",null,4500]
[null,98,"BR0249218","30.90.30-26","Bucha de nylon tamanho S/8","UN",null,4600]
[null,99,"BR0010090","33.90.30-28","Cadeado de 30mm, corpo de latão maciço","unid.",null,78]
[null,100,"BR0290095","33.90.30-28","Cadeado de 40mm, corpo de latão maciço","unid.",null,67]
[null,101,"BR0290095","33.90.30-28","Cadeado de 45mm, corpo de latão maciço","unid.",null,67]
[null,102,"BR0290095","33.90.30-28","Cadeado de 50mm, corpo de latão maciço","unid.",null,72]
[null,103,"BR0313078","30.90.30-26","Cola, composição polivinil acetato- pva, cor branca, aplicação papel e madeira, características adicionais atóxica, tipo líquido                                                   ","Litro",null,35]
[null,104,"BR0264064","30.90.30-26","Jogo chave  tipo halem, aço cromo vanádio, hexagonal, 9, manutenção equipamento mecânico, chaves medidas 1,5; 2; 2,5; 3; 4; 5; 6; 7 e 8mm, modelo \"L\", curto, fosfatiza","UN",null,20]
[null,105,"BR0389282","30.90.30-26","Jogo chaves fenda, aço cromo vanádio, chata e philips.\nPhilips 1/64, 1/32, 5/64;  Fendas 3/32,5/32,27/12/ pololegadas\nCabo em plástico resistente, com ponta imantada","UN",null,19]
[null,106,"BR0032760","33.90.30-24","Jogo de chave, de fenda, em aço cromo vanádio, bitolas 3x60, 4,5x80, 4,5x100, 6x150, 10x150 e 10x200","unid.",null,12]
[null,107,"BR0066397","33.90.30-24","Jogo de chave, tipo allen, hexagonal, 11 peças, 1,5 a 10 mm'","unid.",null,12]
[null,108,"BR0245015","33.90.30-24","Jogo de chave, tipo ponta phillips, em aço cromo vanádio, bitolas 3x60, 4,5x80, 4,5x100, 6x150, 10x150 e 10x200","unid.",null,12]
[null,109,"BR0302379","30.90.30-26","Lâmina serra manual, aço rápido, 32 dentes por polegada, 1/2\" pol, 300 mm    \nMarca: equivalente ou superior à Starret.                               ","UN",null,64]
[null,110,"BR0010146","30.90.30-26","Mola para porta (tipo coimbra)","UN",null,89]
[null,111,"BR0067601",null,"Multímetro Digital com visor de LEDs com retro iluminação branca para trabalhar em áreas com pouca luminosidade, Todas as entradas devem estar protegidas de acordo com a CE, IEN61010-1, CAT III 600 V. Listados na UL, CSA, TÜV e VDE; Tensão máxima entre qualquer terminal e a terra de 600 V, Proteção contra picos de 6 kV, de acordo com IEC 61010-1 600 V CAT III, grau de poluição 2; Milivolts DC: Gama: 600,0 mV, Resolução:0,1 mV, Precisão: ± ([% da leitura] + [contagens]): 2,0% + 3; Volts DC Gama/Resolução: 6,000 V / 0,001 V,Gama/Resolução: 60,00 V / 0,01 V,Gama/Resolução: 600,00 V / 0,1 V,Precisão: ± ([% da leitura] + [contagens]): 0,5% + 2; Milivolts AC1 True RMS: Gama 600,0 mV,Resolução: 0,1 mV, Precisão: 1,0% + 3 (DC, 45 Hz a 500 Hz) 2,0% + 3 (500 Hz a 1 kHz);Volts AC1 True RMS: Gama/Resolução: 6,000 V / 0,001 V, Gama/Resolução: 60,00 V / 0,01 V,Gama/Resolução: 600,0 V / 0,1 V, Precisão:1,0% + 3 (DC, 45 Hz a 500 Hz) 2,0% + 3 (500 Hz a 1 kHz);Continuidade Gama: 600 Ω,Resolução: 1 Ω Precisão: Sinal sonoro ligado a <20 Ω, desligado a >250 Ω; detecta circuitos abertos ou curto-circuitos de 500 μs ou superiores; Ohms: Gama/Resolução:600,0 Ω / 0,1 Ω, Gama/Resolução: 6,000 kΩ / 0,001 kΩ, Gama/Resolução: 60,00 kΩ / 0,01 kΩ, Gama/Resolução:600,0 kΩ / 0,1 kΩ,Gama/Resolução: 6,000 MΩ / 0,001 MΩ,Precisão:0,9% + 1, Gama/Resolução: 40,00 MΩ / 0,01 MΩ, Precisão: 1,5% + 2; Ensaio de díodo: Gama/Resolução: 2,00 V / 0,001 V, Precisão: 0,9% + 2 Capacidade Gama/Resolução: 1000 nF / 1 nF, Gama/Resolução:10,00 μF / 0,01 μF, Gama/Resolução: 100,0 μF / 0,1 μF, Gama/Resolução: 9999 μF / 1 μF, Gama/Resolução: 100 μF a 1000 μF, Precisão: 1,9% + 2, Gama/Resolução: >1000 μF, Precisão:","unid.",null,5]
[null,112,"BR0275057","30.90.30-26","Parafuso, aço galvanizado, cabeça sextavada, 50 mm, 5/16 pol, rosca soberba                                 ","UN",null,4450]
[null,113,"BR0250703",null,"Prego com cabeça, aço temperado, liso, liso, diamante, niquelado, 10 X 10","KG",null,27]
[null,114,"BR0317913","30.90.30-26","Prego com cabeça, aço, chata, liso, c omum, 13 x 18       ","KG",null,30]
[null,115,"BR0330577","30.90.30-26","Prego com cabeça, ferro comum, chata,  liso, polido, 17 x 21","KG",null,30]
[null,116,"BR0330576","30.90.30-26","Prego com cabeça, ferro comum, chata, liso, polido, 15 x 15 ","KG",null,30]
[null,117,"BR018384","33.90-30-17","Solda para eletrônica (solda de estanho e chumbo) 60/40 com ponto de fusão de 183 °C, rolo com 500 g","unid.",null,9]
[null,118,"BR0008907","30.90.30-26","Trena de aço, 3/4'' de largura, 10m, graduação em milímetro e polegada, com trava de fixação, presilha para cinto e estojo em ABS                                                   ","UN",null,30]
[null,119,"BR0234033","30.90.30-26","Trena em fibra de vidro, estojo anatômico, com manivela dobrável, 50 (cinquenta) metros","UN",null,13]
[null,120,"BR0226313","30.90.30-26","Verniz, acabamento brilhante, cor transparente, método aplicação pincel e pistola, aplicação interior e exterior, características adicionais secagem rápida   (GALÃO 3,60 L)                  ","GALÃO 3,60 L",null,28]
[]
[null,"Total Geral",{"$nulls":9},{"$f":"SUM(L14:L50)","v":0}]

{"sheet":"Planilha IV - Novos Materiais","index":3,"n_rows":51,"n_cols":12,"rows_kept":51,"cut":false,"hidden":false,"merged":[[10,1,10,11],[50,1,50,10],[3,3,3,11],[4,3,4,11],[5,3,5,11],[6,3,6,11],[8,1,8,11],[9,1,9,11]]}
[]
[]
[]
[null,null,null,"MINISTÉRIO DA INTEGRAÇÃO NACIONAL - MI"]
[null,null,null,"COMPANIHA DE DESENVOLVIMENTO DOS VALES DO SÃO FRANCISCO E DO PARNAÍBA - CODEVASF"]
[null,null,null,"ÁREA DE GESTÃO ADMINISTRATIVA E DE SUPORTE LOGÍSTICO"]
[null,null,null,"Gerência de Patrimônio, Materiais e Serviços Auxiliares"]
[]
[null,"Planilha IV"]
[null,"Novos Material de Manutenção de Elétrica / Marcenaria / Ferramentas"]
[]
[null,"Unidade: CODEVASF"]
[null,"Item","Código CATMAT","Natureza Despesa","Descrição Sucinta","Unid.","Adquirente","Consumo  Anual \nGeral","Preço unitário máximo\n2017","Preço unitário máximo\n2015","Preço unitário REGISTRADO 2016","Valor Global"]
[null,121,"BR0421088","30.90.30-26","Filtro linha, 110/220 v, 6 tomadas padrão nbr14136, seleção automática de voltagem, proteção contra surtos rede energia e telefonia, 60 hz, novo padrão nbr 14136:2002, pintura eletrostática a pó, display contator surto elétrico; fusível térmico.  ","Unid.",null,150]
[null,122,"BR0399271 ","30.90.30-26","Luz emergência, fixa à parede, 30 lâmpadas de led de 3W, bivolt, recarregável, autonomia mínima de 12 horas, luz branca.\nMarca:equivalente ou superior àIntelbrás","Unid.",null,80]
[null,123,"BR00439278","30.90.30-26","Lâmpada led, bivolt v, 50 w, e-27, 4500 lm, super led (alta potência), luz branca, vida útil mínima de 25000 horas.                                      ","Unid.",null,250]
[null,124,"BR0041599","30.90.30-26","Quadro de distribuição em chapa de aço carbono pintada eletrostaticamente na cor branca ou marrom para no mínimo 40 módulos.","Unid.",null,2]
[null,125,"BR0150260","30.90.30-26","Luminária tipo arandela (vulgarmente denominada tartaruga), a prova de tempo, confeccionada em aço e Vidro.","Unid.",null,10]
[null,126,"BR0377672","30.90.30-26","Canaleta 32mm x 12,5 mm para uso em Sistema X. \nCom 2 Metros de comprimento\nMarca:equivalente ou superior à Pial Legrand.","Unid.",null,160]
[null,127,"BR0377672","30.90.30-26","Canaleta 20mm x 10 mm para uso em Sistema X.\nCom 2 Metros de comprimento\nMarca:equivalente ou superior à Pial Legrand.","Unid.",null,460]
[null,128,"BR0377672","30.90.30-26","Canaleta 50mm x 20 mm para uso em Sistema X.\nCom 2 Metros de comprimento\nMarca:equivalente ou superior à Pial Legrand.","Unid.",null,60]
[null,129,"BR0377672","30.90.30-26","Canaleta 110mm x 20 mm para uso em Sistema X.\nCom 2 Metros de comprimento\nMarca:equivalente ou superior à Pial Legrand.","Unid.",null,60]
[null,130,"BR0231486","30.90.30-26","Cotovelo de 90º 20mm x 10mm para uso em Sistema X. \nMarca:  equivalente ou superior à Pial Legrand.","Unid.",null,90]
[null,131,"BR0231499","30.90.30-26","Cotovelo interno 20mm x 10mm para uso em Sistema X.\nMarca:equivalente ou superior à Pial Legrand.","Unid.",null,275]
[null,132,"BR0411269","30.90.30-26","Acoplador 20mm x 10mm para uso em Sistema X.\nMarca:equivalente ou superior à Pial Legrand.","Unid.",null,260]
[null,133,"BR0344875","30.90.30-26","Luva 20mm x 10mm para uso em Sistema X.\nMarca:equivalente ou superior à Pial Legrand.","Unid.",null,290]
[null,134,"BR0231487","30.90.30-26","Derivação em T 20mm x 10mm para uso em Sistema X.\nMarca:equivalente ou superior à Pial Legrand.","Unid.",null,280]
[null,135,"BR0424421","30.90.30-26","Protetor contra surto de tensão, 175   vca, 25 ka, anti-chama, abnt 5410 e 5419, 40 até 80 °c, plástico injetado em nylon                                                            ","Unid.",null,150]
[null,136,"BR0426191","30.90.30-26","Protetor contra surto de tensão, 275 v, 15 ka, ip20                                                         ","Unid.",null,20]
[null,137," BR0434161","30.90.30-26","Refletor, alumínio blindado, led cob (chip on board), 100 w, bivolt v, IP65 (tabela ingress protection), 12 °, 6000/4000 k               ","Unid.",null,10]
[null,138,"BR0064831","30.90.30-26","Reator eletrônico, para lâmpada fluorescente HO (HIGH OUTPUT), 1  X 110 W,  110/220 V,  em conformidade com as normas (NBR nº 14417 e 14418)","Unid.",null,180]
[null,139,"BR0064831","30.90.30-26","Reator lâmpada, 1 un, 40 w, 110/220 volt, lâmpadas fluorescente, partida rápida   ","Unid.",null,100]
[null,140,"BR0434160","30.90.30-26","Refletor, Alumínio blindado, LED COB (CHIP ON BOARD), 50 W, bivolt, IP65 (Tabela ingress protection), 120°, 6000/4000 K","Unid.",null,50]
[null,141,"BR0231471",null,"Argamassa, cimento, calcário e aditivos, cinza, rejunte de placas cerâmicas em pisos e paredes \nSaco com 20 kg\nMarca:  equivalente ou superior à Quartzolit","Saco com 20 KG",null,10]
[null,142,"BR0409523","30.90.30-26","Cabo elétrico flexível, 750 v, pp, mole, 3 x 4 mm2, cobre, pvc anti-chama, pvc,  de conformidade INMETRO, norma aplicável NBR 13249\nBobina com 500 metros\nMarca:  equivalente ou superior à Pirelli.","Metros",null,1000]
[null,143,"BR0429945",null,"Válvula de mictório sensor embutir, inox polido, elétrico 110/220V – 12Vcc, regulador de vazão 6 litros/min","Unid.",null,10]
[null,144,"BR0126772",null,"Alicate amperímetro, material plástico, tipo digital, corrente 0.1 a 1.000A, voltagem 1 a 600V AC/ DC 1 a 1000V, alimentação a bateria 9V, resistência 40, aplicação eletricidade, características adicionais data hold, beep de continuidade e display lcd 3 1/2.","Unid.",null,3]
[null,145,"BR0379354",null,"Detector de tensão de 90 a 1000 V AC, de bolso, tipo \"caneta\" aplicação eletricidade, detecta o campo electrostático estável produzido pela tensão AC através do isola-mento, sem ser necessário contacto com o condutor desprotegido, ponta indica a presença de tensão por ilmuminação e beep, alimentado por 2 pilhas AAA, em conformidade com as normas IEC 61010-1:2001, UL 61010-1 (2.ª ed.), CAN/CSA-C22.2 N.º 61010-1-04, e ISA-82.02.01 Grau de Poluição 2, IEC 61326-1:2006","Unid.",null,3]
[null,146,"BR0231488",null,"Tampa de extremidade sistema X, medindo 20mm X 10mm e fabricado em termoplástico na cor branco","Unid.",null,125]
[null,147,"BR0231499",null,"Cotovelo externo sistema X, medindo 20mm x 10mm e fabricado em ter-moplástico na cor branca","Unid.",null,110]
[{"$nulls":6},0,{"$f":"SUM(G41:G41)","v":0}]
[{"$nulls":6},0,0]
[{"$nulls":6},0,0]
[{"$nulls":6},0,0]
[{"$nulls":6},0,0,{"$f":"SUM(H45:H45)","v":0},null,null,{"$f":"H45*I45","v":0}]
[{"$nulls":6},0,0,{"$f":"SUM(H46:H46)","v":0},null,null,0]
[{"$nulls":6},0,0,{"$f":"SUM(H47:H47)","v":0},null,null,0]
[{"$nulls":6},0,0,{"$f":"SUM(H48:H48)","v":0},null,null,0]
[{"$nulls":6},0,0,{"$f":"SUM(H49:H49)","v":0},null,null,0]
[]
[null,"Total Geral",{"$nulls":9},{"$f":"SUM(L14:L50)","v":0}]